[Event "20. Dolomitenbank Open-A 2019"]
[Site "Lienz"]
[Date "2019.02.14"]
[Round "7.6"]
[White "Solodovnichenko, Yuri"]
[Black "Lin, Yi"]
[Result "1/2-1/2"]
[ECO "B10"]
[WhiteElo "2574"]
[BlackElo "2345"]
[Annotator "RC"]
[PlyCount "191"]
[EventDate "2019.02.09"]
[EventType "swiss"]
[EventCountry "AUT"]
[SourceTitle "playchess.com"]
[Source "ChessBase"]
[SourceQuality "1"]
[TimeControl "40/5400+30:1800+30"]

1. e4 {[%emt 0:00:00]} c6 {[%emt 0:00:00]} 2. Nf3 {[%emt 0:00:22]} d5 {[%emt 0:00:00]} 3. Nc3 {[%emt 0:00:03]} dxe4 {[%emt 0:00:00]} 4. Nxe4 {[%emt 0:00:06]} Nf6 {[%emt 0:00:04]} 5. Qe2 {[%emt 0:00:07]} Nxe4 {[%emt 0:00:14]} 6. Qxe4 {[%emt 0:00:06]} Qd5 {[%emt 0:00:11]} 7. Qh4 {[%emt 0:00:21]} Qe6+ {[%emt 0:00:26]} 8. Be2 {[%emt 0:00:06]} Qg4 {[%emt 0:00:21]} 9. Qg3 {[%emt 0:00:05]} g6 {[%emt 0:00:41]} 10. Ng5 {[%emt 0:16:44]} Qxg3 {[%emt 0:00:07]} 11. hxg3 {[%emt 0:00:03]} Bg7 {[%emt 0:00:36]} 12. Bc4 {[%emt 0:09:55]} e6 {[%emt 0:00:18]} 13. Rxh7 {[%emt 0:04:09]} Rxh7 {[%emt 0:01:17]} 14. Nxh7 {[%emt 0:00:04]} f6 {[%emt 0:01:41]} 15. g4 {[%emt 0:01:20]} Kf7 {[%emt 0:09:28]} 16. g5 {[%emt 0:00:47]} f5 {[%emt 0:00:10]} 17. Nf6 {[%emt 0:02:30]} Bxf6 {[%emt 0:04:38]} 18. gxf6 {[%emt 0:00:04]} Nd7 {[%emt 0:01:26]} 19. b4 {[%emt 0:04:21]} Nxf6 {[%emt 0:01:24]} 20. Bb2 {[%emt 0:00:35]} Bd7 {[%emt 0:02:06]} 21. f3 {[%emt 0:01:13]} Rh8 {[%emt 0:03:25]} 22. Kf2 {[%emt 0:00:26]} Rh4 {[%emt 0:03:45]} 23. d3 {[%emt 0:00:18]} Nd5 {[%emt 0:03:36]} 24. a3 {[%emt 0:01:08]} g5 {[%emt 0:02:11]} 25. Re1 {[%emt 0:01:09]} Nf4 {[%emt 0:10:02]} 26. Kg1 {[%emt 0:02:24]} Nh5 {[%emt 0:01:38]} 27. Kf2 {[%emt 0:09:30]} Nf4 {[%emt 0:00:10]} 28. Be5 {[%emt 0:04:36]} Rh2 {[%emt 0:11:46]} 29. Rg1 {[%emt 0:00:20]} Nh3+ {[%emt 0:02:47]} 30. Kf1 {[%emt 0:10:30]} Nf4 {[%emt 0:00:07]} 31. d4 {[%emt 0:01:22]} b5 {[%emt 0:04:18]} 32. Bb3 {[%emt 0:00:49]} Ke7 {[%emt 0:01:08]} 33. g4 {[%emt 0:07:39]} Rd2 {[%emt 0:16:23]} 34. Ke1 {[%emt 0:00:51]} Re2+ {[%emt 0:00:14]} 35. Kd1 {[%emt 0:00:38]} Rg2 {[%emt 0:00:23]} 36. Rh1 {[%emt 0:08:32]} fxg4 {[%emt 0:00:13]} 37. Rh7+ {[%emt 0:01:19]} Kd8 {[%emt 0:02:17]} 38. Bf6+ {[%emt 0:03:16]} Kc7 {[%emt 0:04:08]} 39. Be5+ {[%emt 0:00:26]} Kd8 {[%emt 0:00:04]} 40. Bf6+ {[%emt 0:00:23]} Kc7 {[%emt 0:00:05]} 41. fxg4 {[%emt 0:30:26]} Rxg4 {[%emt 0:30:50]} 42. Rh8 {[%emt 0:00:45]} Bc8 {[%emt 0:00:00]} 43. Rg8 {[%emt 0:00:00]} Nd5 {[%emt 0:00:00]} 44. Be5+ {[%emt 0:00:00]} Kb7 {[%emt 0:00:00]} 45. Rg7+ {[%emt 0:00:00]} Ka6 {[%emt 0:00:00]} 46. Ke2 {[%emt 0:00:00]} Rg1 {[%emt 0:03:20]} 47. Bd6 {[%emt 0:00:00]} Bb7 {[%emt 0:07:04]} 48. a4 {[%emt 0:00:00]} Nc3+ {[%emt 0:02:01]} 49. Kf2 {[%emt 0:00:00]} Rg4 {[%emt 0:01:28]} 50. axb5+ {[%emt 0:01:32]} cxb5 {[%emt 0:00:06]} 51. Bc5 {[%emt 0:04:44]} Ne4+ {[%emt 0:02:21]} 52. Ke3 {[%emt 0:00:16]} Rg3+ {[%emt 0:00:51]} 53. Ke2 {[%emt 0:00:06]} Rg2+ {[%emt 0:00:22]} 54. Kf1 {[%emt 0:01:34]} Nxc5 {[%emt 0:03:39]} 55. dxc5 {[%emt 0:03:41]} Rg4 {[%emt 0:00:03]} 56. Rg6 {[%emt 0:00:48]} Rxb4 {[%emt 0:01:25]} 57. Rxe6+ {[%emt 0:00:20]} Ka5 {[%emt 0:00:01]} 58. Re7 {[%emt 0:01:28]} Rf4+ {[%emt 0:00:15]} 59. Kg1 {[%emt 0:00:22]} Bf3 {[%emt 0:01:00]} 60. Rxa7+ {[%emt 0:01:21]} Kb4 {[%emt 0:00:01]} 61. Rc7 {[%emt 0:01:04]} Rf5 {[%emt 0:00:20]} 62. c6 {[%emt 0:00:39]} Rc5 {[%emt 0:00:14]} 63. Rd7 {[%emt 0:02:24]} Bxc6 {[%emt 0:00:33]} 64. Rd4+ {[%emt 0:00:02]} Kc3 {[%emt 0:00:09]} 65. Rd3+ {[%emt 0:00:05]} Kb2 {[%emt 0:00:12]} 66. Rd4 {[%emt 0:00:02]} Be8 {[%emt 0:01:47]} 67. Rd6 {[%emt 0:00:01]} Bh5 {[%emt 0:00:33]} 68. Kf2 {[%emt 0:00:17]} Re5 {[%emt 0:00:40]} 69. Rc6 {[%emt 0:02:35]} Bd1 {[%emt 0:00:12]} 70. Kg3 {[%emt 0:00:39]} Re3+ {[%emt 0:00:17]} 71. Kf2 {[%emt 0:00:22]} Re2+ {[%emt 0:00:29]} 72. Kf1 {[%emt 0:00:08]} Re5 {[%emt 0:00:12]} 73. Kf2 {[%emt 0:00:23]} g4 {[%emt 0:00:51]} 74. Rb6 {[%emt 0:01:38]} Kc3 {[%emt 0:01:12]} 75. Rc6+ {[%emt 0:00:11]} Kb2 {[%emt 0:00:05]} 76. Rb6 {[%emt 0:00:26]} Bxc2 {[%emt 0:00:59]} 77. Bc4 {[%emt 0:00:04]} Ba4 {[%emt 0:00:25]} 78. Kg3 {[%emt 0:00:06]} Rg5 {[%emt 0:00:39]} 79. Bxb5 {[%emt 0:00:25]} Bxb5 {[%emt 0:00:05]} 80. Kf4 {[%emt 0:00:19]} Rd5 {[%emt 0:00:38]} 81. Kxg4 {[%emt 0:00:11]} Kc3 {[%emt 0:00:01]} 82. Rg6 {[%emt 0:00:40]} Kd4 {[%emt 0:00:04]} 83. Rg5 {[%emt 0:00:23]} Be2+ {[%emt 0:00:14]} 84. Kf4 {[%emt 0:00:04]} Rd8 {[%emt 0:00:19]} 85. Kg3 {[%emt 0:00:05]} Rf8 {[%emt 0:00:13]} 86. Rg7 {[%emt 0:00:53]} Bd3 {[%emt 0:00:19]} 87. Kg4 {[%emt 0:00:58]} Rf1 {[%emt 0:00:14]} 88. Rg5 {[%emt 0:00:33]} Ke3 {[%emt 0:00:15]} 89. Kg3 {[%emt 0:00:48]} Be4 {[%emt 0:00:09]} 90. Kg4 {[%emt 0:00:34]} Rh1 {[%emt 0:00:43]} 91. Kg3 {[%emt 0:00:12]} Rf1 {[%emt 0:01:16]} 92. Kg4 {[%emt 0:00:06]} Rf3 {[%emt 0:00:27]} 93. Rg7 {[%emt 0:01:27]} Bf5+ {[%emt 0:00:46]} 94. Kg5 {[%emt 0:00:05]} Be4 {[%emt 0:00:29]} 95. Kg4 {[%emt 0:00:09]} Rf1 {[%emt 0:00:11]} 96. Rg5 1/2-1/2

[Event "20. Dolomitenbank Open-A 2019"]
[Site "Lienz"]
[Date "2019.02.16"]
[Round "9.1"]
[White "Ankit, R. Rajpara"]
[Black "Sanal, Vahap"]
[Result "1/2-1/2"]
[ECO "E15"]
[WhiteElo "2451"]
[BlackElo "2497"]
[Annotator "ChessBase"]
[PlyCount "108"]
[EventDate "2019.02.09"]
[EventType "swiss"]
[EventCountry "AUT"]
[SourceTitle "playchess.com"]
[Source "ChessBase"]
[SourceQuality "1"]
[TimeControl "40/5400+30:1800+30"]

1. d4 {[%emt 0:02:33]} Nf6 {[%emt 0:00:00]} 2. c4 {[%emt 0:00:28]} e6 {[%emt 0:00:00]} 3. Nf3 {[%emt 0:00:18]} b6 {[%emt 0:00:08]} 4. g3 {[%emt 0:00:11]} c6 {[%emt 0:00:31]} 5. Bg2 {[%emt 0:01:41]} d5 {[%emt 0:00:15]} 6. O-O {[%emt 0:00:41]} Be7 {[%emt 0:03:35]} 7. Qc2 {[%emt 0:04:55]} O-O {[%emt 0:00:14]} 8. Nbd2 {[%emt 0:01:03]} Bb7 {[%emt 0:00:16]} 9. e4 {[%emt 0:01:40]} Na6 {[%emt 0:00:07]} 10. a3 {[%emt 0:04:19]} dxc4 {[%emt 0:02:45]} 11. Nxc4 {[%emt 0:04:00]} c5 {[%emt 0:00:35]} 12. e5 {[%emt 0:06:45]} Nd5 {[%emt 0:00:28]} 13. dxc5 {[%emt 0:01:57]} Nxc5 {[%emt 0:00:16]} 14. b4 {[%emt 0:01:45]} Nd7 {[%emt 0:00:08]} 15. Bb2 {[%emt 0:12:32]} Rc8 {[%emt 0:01:27]} 16. Qb3 {[%emt 0:01:58]} Rc7 {[%emt 0:06:42]} 17. Rfd1 {[%emt 0:15:25]} Qa8 {[%emt 0:05:44]} 18. Nd4 {[%emt 0:04:01]} a6 {[%emt 0:25:00]} 19. Nd6 {[%emt 0:03:27]} Bxd6 {[%emt 0:00:23]} 20. exd6 {[%emt 0:00:03]} Rcc8 {[%emt 0:00:07]} 21. Nf5 {[%emt 0:04:37]} exf5 {[%emt 0:01:14]} 22. Bxd5 {[%emt 0:00:25]} b5 {[%emt 0:08:55]} 23. Bxb7 {[%emt 0:07:16]} Qxb7 {[%emt 0:00:06]} 24. Rac1 {[%emt 0:00:07]} Rxc1 {[%emt 0:15:49]} 25. Rxc1 {[%emt 0:00:05]} Re8 {[%emt 0:00:12]} 26. Qc3 {[%emt 0:08:21]} f6 {[%emt 0:00:20]} 27. Qc7 {[%emt 0:04:10]} Qxc7 {[%emt 0:03:01]} 28. Rxc7 {[%emt 0:01:18]} Rd8 {[%emt 0:00:22]} 29. Bd4 {[%emt 0:04:23]} Kf7 {[%emt 0:00:55]} 30. Ra7 {[%emt 0:01:00]} Ke6 {[%emt 0:00:19]} 31. Rxa6 {[%emt 0:00:03]} Rc8 {[%emt 0:03:17]} 32. Ra5 {[%emt 0:01:36]} Kd5 {[%emt 0:03:06]} 33. Bc5 {[%emt 0:01:30]} Kc6 {[%emt 0:00:55]} 34. Ra6+ {[%emt 0:00:30]} Kb7 {[%emt 0:01:09]} 35. Ra7+ {[%emt 0:00:15]} Kc6 {[%emt 0:00:03]} 36. Kf1 {[%emt 0:00:42]} g5 {[%emt 0:02:00]} 37. h4 {[%emt 0:00:32]} h6 {[%emt 0:02:44]} 38. h5 {[%emt 0:01:12]} Rd8 {[%emt 0:00:41]} 39. Rc7+ {[%emt 0:00:27]} Kd5 {[%emt 0:00:02]} 40. Rb7 {[%emt 0:00:15]} Kc6 {[%emt 0:00:47]} 41. Rc7+ {[%emt 0:30:29]} Kd5 {[%emt 0:30:01]} 42. Rb7 {[%emt 0:00:00]} Kc6 {[%emt 0:00:00]} 43. Ra7 {[%emt 0:00:00]} Kd5 {[%emt 0:00:00]} 44. Ra5 {[%emt 0:00:00]} Kc6 {[%emt 0:00:00]} 45. Ra6+ {[%emt 0:00:11]} Kd5 {[%emt 0:00:00]} 46. Ra5 {[%emt 0:00:27]} Kc6 {[%emt 0:00:00]} 47. Ra6+ {[%emt 0:00:11]} Kd5 {[%emt 0:00:00]} 48. a4 {[%emt 0:01:13]} Nxc5 {[%emt 0:00:00]} 49. bxc5 {[%emt 0:00:03]} bxa4 {[%emt 0:00:00]} 50. Rxa4 {[%emt 0:01:06]} Kxc5 {[%emt 0:00:00]} 51. Ra7 {[%emt 0:00:35]} Kxd6 {[%emt 0:00:00]} 52. Rh7 {[%emt 0:00:09]} f4 {[%emt 0:00:00]} 53. gxf4 {[%emt 0:00:34]} gxf4 {[%emt 0:00:00]} 54. Rxh6 {[%emt 0:00:13]} Ke5 1/2-1/2

[Event "20. Dolomitenbank Open-A 2019"]
[Site "Lienz"]
[Date "2019.02.16"]
[Round "9.3"]
[White "Maiorov, Nikita"]
[Black "Gaprindashvili, Valeriane"]
[Result "1-0"]
[ECO "E32"]
[WhiteElo "2523"]
[BlackElo "2387"]
[Annotator "ChessBase"]
[PlyCount "113"]
[EventDate "2019.02.09"]
[EventType "swiss"]
[EventCountry "AUT"]
[SourceTitle "playchess.com"]
[Source "ChessBase"]
[SourceQuality "1"]
[TimeControl "40/5400+30:1800+30"]

1. d4 {[%emt 0:00:24]} Nf6 {[%emt 0:03:18]} 2. c4 {[%emt 0:00:10]} e6 {[%emt 0:00:06]} 3. Nc3 {[%emt 0:00:03]} Bb4 {[%emt 0:00:15]} 4. Qc2 {[%emt 0:00:05]} O-O {[%emt 0:00:22]} 5. a3 {[%emt 0:00:05]} Bxc3+ {[%emt 0:00:07]} 6. Qxc3 {[%emt 0:00:02]} Ne4 {[%emt 0:00:29]} 7. Qc2 {[%emt 0:00:07]} d5 {[%emt 0:00:10]} 8. e3 {[%emt 0:06:41]} f5 {[%emt 0:01:37]} 9. Nh3 {[%emt 0:04:51]} a5 {[%emt 0:02:06]} 10. Bd3 {[%emt 0:00:59]} Nc6 {[%emt 0:01:46]} 11. O-O {[%emt 0:00:22]} a4 {[%emt 0:03:43]} 12. cxd5 {[%emt 0:11:21]} exd5 {[%emt 0:00:57]} 13. Nf4 {[%emt 0:00:08]} Ne7 {[%emt 0:09:40]} 14. Bd2 {[%emt 0:00:23]} Nxd2 {[%emt 0:02:30]} 15. Qxd2 {[%emt 0:02:23]} g5 {[%emt 0:06:11]} 16. Ne2 {[%emt 0:01:58]} Qd6 {[%emt 0:00:56]} 17. Rfe1 {[%emt 0:06:01]} Bd7 {[%emt 0:05:53]} 18. Rac1 {[%emt 0:01:03]} c6 {[%emt 0:07:25]} 19. Bc2 {[%emt 0:01:27]} b5 {[%emt 0:02:59]} 20. f3 {[%emt 0:00:40]} h6 {[%emt 0:04:25]} 21. Nc3 {[%emt 0:02:10]} Rad8 {[%emt 0:05:01]} 22. Bb1 {[%emt 0:11:05]} Be8 {[%emt 0:09:13]} 23. e4 {[%emt 0:06:27]} dxe4 {[%emt 0:04:12]} 24. fxe4 {[%emt 0:00:06]} Bg6 {[%emt 0:02:26]} 25. Ba2+ {[%emt 0:02:17]} Bf7 {[%emt 0:04:31]} 26. Bxf7+ {[%emt 0:06:17]} Rxf7 {[%emt 0:00:12]} 27. Rcd1 {[%emt 0:00:01]} fxe4 {[%emt 0:07:48]} 28. Nxe4 {[%emt 0:00:05]} Qf4 {[%emt 0:02:45]} 29. Qe2 {[%emt 0:04:05]} Nd5 {[%emt 0:04:00]} 30. Nc5 {[%emt 0:10:19]} Re7 {[%emt 0:03:20]} 31. Qd3 {[%emt 0:00:24]} Rd6 {[%emt 0:02:42]} 32. Rxe7 {[%emt 0:05:57]} Nxe7 {[%emt 0:00:02]} 33. Qe2 {[%emt 0:02:05]} Qf7 {[%emt 0:01:28]} 34. Re1 {[%emt 0:04:00]} Nf5 {[%emt 0:02:12]} 35. Rf1 {[%emt 0:04:25]} Qe7 {[%emt 0:00:58]} 36. Qe4 {[%emt 0:03:56]} Rd5 {[%emt 0:01:13]} 37. g4 {[%emt 0:01:22]} Qxe4 {[%emt 0:00:32]} 38. Nxe4 {[%emt 0:00:06]} Rxd4 {[%emt 0:00:47]} 39. Nf6+ {[%emt 0:00:06]} Kf7 {[%emt 0:00:06]} 40. Rxf5 {[%emt 0:00:07]} Rd1+ {[%emt 0:00:22]} 41. Kf2 {[%emt 0:30:49]} Rd2+ {[%emt 0:07:14]} 42. Ke3 {[%emt 0:00:00]} Rxb2 {[%emt 0:01:23]} 43. Ne4+ {[%emt 0:00:00]} Kg7 {[%emt 0:06:11]} 44. Rc5 {[%emt 0:00:00]} Ra2 {[%emt 0:05:36]} 45. Rc3 {[%emt 0:00:00]} Rxh2 {[%emt 0:00:11]} 46. Ng3 {[%emt 0:00:00]} Ra2 {[%emt 0:05:12]} 47. Kd4 {[%emt 0:00:00]} Rd2+ {[%emt 0:03:02]} 48. Ke5 {[%emt 0:00:00]} b4 {[%emt 0:01:49]} 49. axb4 {[%emt 0:00:00]} Rb2 {[%emt 0:00:06]} 50. Nf5+ {[%emt 0:00:00]} Kf7 {[%emt 0:01:00]} 51. Nxh6+ {[%emt 0:00:00]} Ke7 {[%emt 0:01:09]} 52. Rxc6 {[%emt 0:00:00]} Rxb4 {[%emt 0:00:11]} 53. Rc7+ {[%emt 0:00:00]} Ke8 {[%emt 0:02:42]} 54. Ra7 {[%emt 0:00:00]} Rb6 {[%emt 0:00:38]} 55. Nf5 {[%emt 0:00:00]} Rb4 {[%emt 0:00:09]} 56. Nd6+ {[%emt 0:00:00]} Kd8 {[%emt 0:00:27]} 57. Ke6 {[%emt 0:00:00]} 1-0

[Event "20. Dolomitenbank Open-A 2019"]
[Site "Lienz"]
[Date "2019.02.16"]
[Round "9.4"]
[White "Mesaros, Florian"]
[Black "Prusikin, Michael"]
[Result "0-1"]
[ECO "E41"]
[WhiteElo "2449"]
[BlackElo "2517"]
[Annotator "RC"]
[PlyCount "90"]
[EventDate "2019.02.09"]
[EventType "swiss"]
[EventCountry "AUT"]
[SourceTitle "playchess.com"]
[Source "ChessBase"]
[SourceQuality "1"]
[TimeControl "40/5400+30:1800+30"]

1. d4 {[%emt 0:01:53]} Nf6 {[%emt 0:00:00]} 2. c4 {[%emt 0:00:06]} e6 {[%emt 0:00:00]} 3. Nc3 {[%emt 0:00:06]} Bb4 {[%emt 0:00:06]} 4. e3 {[%emt 0:00:07]} c5 {[%emt 0:00:21]} 5. Nf3 {[%emt 0:08:31]} Bxc3+ {[%emt 0:01:58]} 6. bxc3 {[%emt 0:00:04]} d6 {[%emt 0:00:12]} 7. Bd3 {[%emt 0:05:36]} Nc6 {[%emt 0:00:24]} 8. O-O {[%emt 0:11:59]} e5 {[%emt 0:00:51]} 9. d5 {[%emt 0:06:31]} Ne7 {[%emt 0:03:32]} 10. Nd2 {[%emt 0:01:50]} O-O {[%emt 0:00:48]} 11. Qc2 {[%emt 0:00:55]} g6 {[%emt 0:00:39]} 12. f4 {[%emt 0:02:21]} exf4 {[%emt 0:08:43]} 13. Rxf4 {[%emt 0:01:43]} Ng4 {[%emt 0:01:12]} 14. Nf3 {[%emt 0:14:55]} f6 {[%emt 0:20:38]} 15. h3 {[%emt 0:04:26]} Ne5 {[%emt 0:02:32]} 16. Nxe5 {[%emt 0:00:30]} dxe5 {[%emt 0:06:38]} 17. Rf1 {[%emt 0:01:08]} f5 {[%emt 0:11:07]} 18. a4 {[%emt 0:10:37]} a5 {[%emt 0:04:00]} 19. Bd2 {[%emt 0:00:35]} Qd6 {[%emt 0:11:03]} 20. Rf2 {[%emt 0:01:29]} Bd7 {[%emt 0:00:29]} 21. Rb1 {[%emt 0:04:59]} b6 {[%emt 0:00:12]} 22. Be2 {[%emt 0:04:09]} Rf6 {[%emt 0:02:27]} 23. Be1 {[%emt 0:05:14]} Raf8 {[%emt 0:01:05]} 24. Rf3 {[%emt 0:02:20]} g5 {[%emt 0:00:38]} 25. Bg3 {[%emt 0:03:31]} Ng6 {[%emt 0:01:34]} 26. Rbf1 {[%emt 0:02:02]} Qe7 {[%emt 0:07:29]} 27. e4 {[%emt 0:01:06]} f4 {[%emt 0:00:33]} 28. Be1 {[%emt 0:00:07]} h5 {[%emt 0:02:16]} 29. Rd3 {[%emt 0:00:46]} g4 {[%emt 0:01:17]} 30. Qd1 {[%emt 0:00:52]} f3 {[%emt 0:05:44]} 31. gxf3 {[%emt 0:00:06]} Nf4 {[%emt 0:00:27]} 32. Bh4 {[%emt 0:03:22]} g3 {[%emt 0:00:29]} 33. Bxg3 {[%emt 0:01:16]} Rg6 {[%emt 0:01:09]} 34. Kh2 {[%emt 0:00:02]} Qg5 {[%emt 0:03:27]} 35. Rg1 {[%emt 0:00:09]} Nxh3 {[%emt 0:00:11]} 36. f4 {[%emt 0:01:52]} exf4 {[%emt 0:01:29]} 37. Bf2 {[%emt 0:00:38]} Nxg1 {[%emt 0:00:40]} 38. Qxg1 {[%emt 0:00:03]} Qf6 {[%emt 0:00:56]} 39. Qe1 {[%emt 0:00:56]} Qe5 {[%emt 0:00:36]} 40. Bf3 {[%emt 0:00:30]} Bg4 {[%emt 0:00:27]} 41. Bh1 {[%emt 0:02:50]} f3+ {[%emt 0:06:52]} 42. Bg3 {[%emt 0:00:11]} f2 {[%emt 0:00:11]} 43. Qf1 {[%emt 0:01:25]} Qg5 {[%emt 0:00:46]} 44. Bg2 {[%emt 0:04:15]} h4 {[%emt 0:00:49]} 45. Bxf2 {[%emt 0:02:40]} Be2 {[%emt 0:00:23]} 0-1

[Event "20. Dolomitenbank Open-A 2019"]
[Site "Lienz"]
[Date "2019.02.16"]
[Round "9.5"]
[White "Zhang, Ziji"]
[Black "Studer, Noel"]
[Result "0-1"]
[ECO "D26"]
[WhiteElo "2406"]
[BlackElo "2494"]
[Annotator "ChessBase"]
[PlyCount "148"]
[EventDate "2019.02.09"]
[EventType "swiss"]
[EventCountry "AUT"]
[SourceTitle "playchess.com"]
[Source "ChessBase"]
[SourceQuality "1"]
[TimeControl "40/5400+30:1800+30"]

1. d4 {[%emt 0:00:00]} d5 {[%emt 0:00:00]} 2. c4 {[%emt 0:00:00]} dxc4 {[%emt 0:00:00]} 3. Nf3 {[%emt 0:00:30]} e6 {[%emt 0:00:00]} 4. e3 {[%emt 0:00:40]} Nf6 {[%emt 0:00:00]} 5. Bxc4 {[%emt 0:00:08]} a6 {[%emt 0:00:00]} 6. O-O {[%emt 0:00:19]} c5 {[%emt 0:00:00]} 7. b3 {[%emt 0:02:08]} b5 {[%emt 0:01:19]} 8. Be2 {[%emt 0:00:24]} Bb7 {[%emt 0:00:04]} 9. Bb2 {[%emt 0:01:37]} Nbd7 {[%emt 0:00:13]} 10. a4 {[%emt 0:01:34]} b4 {[%emt 0:00:27]} 11. Nbd2 {[%emt 0:00:42]} Be7 {[%emt 0:00:05]} 12. Rc1 {[%emt 0:03:15]} Rc8 {[%emt 0:02:00]} 13. Nc4 {[%emt 0:01:26]} O-O {[%emt 0:00:14]} 14. Nfe5 {[%emt 0:07:19]} cxd4 {[%emt 0:00:16]} 15. Nxd7 {[%emt 0:05:40]} Nxd7 {[%emt 0:00:07]} 16. Bxd4 {[%emt 0:00:06]} Bd5 {[%emt 0:25:35]} 17. a5 {[%emt 0:14:40]} Bc5 {[%emt 0:08:01]} 18. Nb6 {[%emt 0:13:52]} Bxb6 {[%emt 0:02:24]} 19. Rxc8 {[%emt 0:05:50]} Qxc8 {[%emt 0:00:01]} 20. axb6 {[%emt 0:00:05]} Qb7 {[%emt 0:02:06]} 21. f3 {[%emt 0:00:35]} e5 {[%emt 0:10:07]} 22. Bb2 {[%emt 0:00:07]} Bc6 {[%emt 0:10:14]} 23. Qd6 {[%emt 0:02:18]} Qxb6 {[%emt 0:05:13]} 24. Rc1 {[%emt 0:00:23]} Qxe3+ {[%emt 0:09:48]} 25. Kf1 {[%emt 0:00:04]} Nb8 {[%emt 0:00:17]} 26. Rxc6 {[%emt 0:04:14]} Nxc6 {[%emt 0:00:04]} 27. Qxc6 {[%emt 0:00:04]} Qxb3 {[%emt 0:00:47]} 28. Bxe5 {[%emt 0:00:04]} a5 {[%emt 0:02:00]} 29. Qb5 {[%emt 0:09:50]} Qe3 {[%emt 0:04:38]} 30. Qxa5 {[%emt 0:05:09]} Re8 {[%emt 0:10:35]} 31. f4 {[%emt 0:00:05]} Rc8 {[%emt 0:01:20]} 32. Bd1 {[%emt 0:10:41]} Qd3+ {[%emt 0:02:04]} 33. Be2 {[%emt 0:00:13]} Qe3 {[%emt 0:00:04]} 34. Bd1 {[%emt 0:00:03]} Qd2 {[%emt 0:04:34]} 35. Qa1 {[%emt 0:00:26]} f6 {[%emt 0:00:31]} 36. Qd4 {[%emt 0:00:10]} Qc1 {[%emt 0:01:53]} 37. Bd6 {[%emt 0:03:45]} Rd8 {[%emt 0:00:23]} 38. Qd5+ {[%emt 0:01:13]} Kh8 {[%emt 0:00:01]} 39. Kf2 {[%emt 0:01:57]} Qc8 {[%emt 0:00:34]} 40. Qd4 {[%emt 0:02:06]} Qe6 {[%emt 0:01:20]} 41. Qxb4 {[%emt 0:30:58]} Qxd6 {[%emt 0:30:32]} 42. Qxd6 {[%emt 0:00:03]} Rxd6 {[%emt 0:00:04]} 43. Bf3 {[%emt 0:00:06]} Kg8 {[%emt 0:00:43]} 44. h4 {[%emt 0:01:59]} Kf7 {[%emt 0:00:00]} 45. Bh5+ {[%emt 0:00:00]} Ke7 {[%emt 0:00:00]} 46. g3 {[%emt 0:00:00]} Rd3 {[%emt 0:00:00]} 47. Bg4 {[%emt 0:00:00]} Ra3 {[%emt 0:00:00]} 48. Bf5 {[%emt 0:00:00]} h6 {[%emt 0:00:00]} 49. Kg2 {[%emt 0:00:00]} Kd6 {[%emt 0:00:00]} 50. Be4 {[%emt 0:00:00]} Kc5 {[%emt 0:00:00]} 51. Kf2 {[%emt 0:00:00]} Kd4 {[%emt 0:00:00]} 52. Bb7 {[%emt 0:00:00]} Rc3 {[%emt 0:00:00]} 53. Ba8 {[%emt 0:00:00]} Kd3 {[%emt 0:00:00]} 54. Bb7 {[%emt 0:00:00]} Kd2 {[%emt 0:00:00]} 55. Bd5 {[%emt 0:00:00]} Rc2 {[%emt 0:00:00]} 56. Be4 {[%emt 0:00:00]} Rb2 {[%emt 0:00:00]} 57. Bc6 {[%emt 0:00:00]} Kd1+ {[%emt 0:00:00]} 58. Kf1 {[%emt 0:00:00]} Rd2 {[%emt 0:00:00]} 59. Be4 {[%emt 0:00:00]} Kc1 {[%emt 0:00:22]} 60. Ke1 {[%emt 0:00:00]} Rh2 {[%emt 0:00:39]} 61. Bf3 {[%emt 0:00:00]} Kc2 {[%emt 0:00:12]} 62. Kf1 {[%emt 0:00:00]} Kd3 {[%emt 0:03:21]} 63. Kg1 {[%emt 0:00:00]} Rb2 {[%emt 0:00:08]} 64. Kf1 {[%emt 0:00:00]} Kd4 {[%emt 0:01:16]} 65. Kg1 {[%emt 0:00:00]} Ke3 {[%emt 0:01:27]} 66. Bc6 {[%emt 0:00:00]} Rc2 {[%emt 0:00:04]} 67. Bb7 {[%emt 0:00:00]} Rc7 {[%emt 0:00:50]} 68. Ba8 {[%emt 0:00:00]} Rc5 {[%emt 0:00:09]} 69. Kg2 {[%emt 0:00:00]} g5 {[%emt 0:00:27]} 70. fxg5 {[%emt 0:00:07]} hxg5 {[%emt 0:00:04]} 71. Kh3 {[%emt 0:00:03]} Kf2 {[%emt 0:01:31]} 72. Kg4 {[%emt 0:00:10]} Rc3 {[%emt 0:03:33]} 73. Kf5 {[%emt 0:00:16]} Rxg3 {[%emt 0:00:03]} 74. h5 {[%emt 0:00:05]} Rh3 {[%emt 0:00:04]} 0-1

[Event "20. Dolomitenbank Open-A 2019"]
[Site "Lienz"]
[Date "2019.02.16"]
[Round "9.6"]
[White "Low, Zhen Yu Cyrus"]
[Black "Schreiner, Peter"]
[Result "1/2-1/2"]
[ECO "C51"]
[WhiteElo "2377"]
[BlackElo "2476"]
[Annotator "ChessBase"]
[PlyCount "26"]
[EventDate "2019.02.09"]
[EventType "swiss"]
[EventCountry "AUT"]
[SourceTitle "playchess.com"]
[Source "ChessBase"]
[SourceQuality "1"]
[TimeControl "40/5400+30:1800+30"]

1. e4 {[%emt 0:00:00]} e5 {[%emt 0:00:31]} 2. Nf3 {[%emt 0:00:00]} Nc6 {[%emt 0:00:06]} 3. Bc4 {[%emt 0:00:00]} Bc5 {[%emt 0:00:08]} 4. b4 {[%emt 0:00:12]} Bb6 {[%emt 0:07:58]} 5. Nc3 {[%emt 0:00:14]} d6 {[%emt 0:04:55]} 6. Nd5 {[%emt 0:04:08]} Nf6 {[%emt 0:02:47]} 7. O-O {[%emt 0:01:00]} Bg4 {[%emt 0:17:07]} 8. c3 {[%emt 0:08:52]} Nxd5 {[%emt 0:01:44]} 9. Bxd5 {[%emt 0:12:38]} Qf6 {[%emt 0:04:23]} 10. d3 {[%emt 0:03:10]} Nd8 {[%emt 0:10:02]} 11. Bg5 {[%emt 0:07:05]} Qxg5 {[%emt 0:11:26]} 12. Nxg5 {[%emt 0:01:49]} Bxd1 {[%emt 0:00:06]} 13. Rfxd1 {[%emt 0:00:14]} c6 {[%emt 0:02:41]} 1/2-1/2